bitfinex-derivatives/quotes_SOLF0:USTF0_20241212
["timestamp","ask_amount","ask_price","bid_price","bid_amount"]
[1734034067514,8.2548,228.74,228.61,2.94]
[1734034067714,7.88962693,228.73,228.63,10.1024934]
[1734034067922,0.67279267,228.73,228.63,10.1024934]
[1734034068119,2.1861,228.68,228.63,12.2889934]
[1734034069332,2.1862,228.67,228.63,10.1024934]
[1734034069825,2.1863,228.66,228.63,10.1024934]
[1734034070621,2.1863,228.66,228.61,2.94]
[1734034070821,2.1865,228.64,228.61,2.94]
[1734034071219,10.1024934,228.72,228.61,2.94]
[1734034071424,2.1866,228.63,228.61,2.94]
[1734034073926,7.89072655,228.71,228.61,2.94]
[1734034074125,0.67296088,228.7,228.57,12.2895934]
[1734034074325,0.67296088,228.7,228.6,10.1024934]
[1734034074527,7.89072655,228.71,228.62,2.1866]
[1734034074831,13.55650988,228.74,228.6,10.1024934]
[1734034075035,8.57026263,228.73,228.6,10.1024934]
[1734034075331,0.67366037,228.72,228.61,2.1868]
[1734034075528,0.67366037,228.72,228.63,10.1024934]
[1734034075727,2.1861,228.69,228.63,12.2889934]
[1734034076031,13.55650988,228.74,228.63,12.2889934]
[1734034076221,8.56760889,228.73,228.63,10.1024934]
[1734034076426,11.48760889,228.73,228.57,5.27375927]
[1734034076623,10.1024934,228.68,228.57,2.92]
[1734034077129,10.1024934,228.68,228.56,2.92]
[1734034077729,0.6733603,228.67,228.56,2.92]
[1734034077932,10.1024934,228.68,228.56,2.92]
[1734034078134,0.67365028,228.67,228.56,2.92]
[1734034078432,2.187,228.59,228.56,2.92]
[1734034079237,7.89763954,228.67,228.56,2.92]
[1734034079433,2.1871,228.58,228.56,2.92]
[1734034080536,2.1872,228.57,228.55,2.92]
[1734034080739,10.1024934,228.65,228.55,2.92]
[1734034081633,10.1024934,228.65,228.51,12.7142934]
[1734034081936,7.89562193,228.64,228.52,2.92]
[1734034082133,10.1024934,228.62,228.48,10.1024934]
[1734034082328,10.1024934,228.62,228.49,5.1079]
[1734034082530,7.89466534,228.61,228.49,5.1079]
[1734034082728,2.1871,228.58,228.49,2.92]
[1734034082933,7.89466534,228.61,228.52,2.1875]
[1734034083241,10.1024934,228.62,228.52,2.1875]
[1734034083739,8.0652,228.64,228.51,10.1024934]
[1734034083938,8.0652,228.64,228.54,10.1024934]
[1734034084140,2.6103,228.64,228.55,2.92]
[1734034084331,2.6103,228.64,228.57,2.1871]
[1734034084731,2.6103,228.64,228.55,2.92]
[1734034085143,2.1872,228.57,228.55,2.92]
[1734034086441,2.187,228.58,228.55,2.92]
[1734034086639,2.6103,228.64,228.55,2.92]
[1734034086833,2.1871,228.58,228.55,2.92]
[1734034088341,2.187,228.59,228.55,5.1073]
[1734034088644,2.6103,228.64,228.55,2.92]
[1734034090041,2.1872,228.57,228.55,2.92]
[1734034090238,2.6103,228.64,228.55,2.92]
[1734034090736,2.1872,228.56,228.55,2.92]
[1734034090944,10.1024934,228.62,228.5,2.92]
[1734034091441,5.5753,228.61,228.5,2.92]
[1734034091837,10.1024934,228.59,228.5,2.92]
[1734034092039,10.1024934,228.59,228.47,2.92]
[1734034092745,2.1878,228.5,228.46,2.92]
[1734034093845,2.1878,228.5,228.46,5.1081]
[1734034094045,10.1024934,228.59,228.46,5.1081]
[1734034094046,2.1879,228.49,228.46,5.1081]
[1734034094240,2.1879,228.49,228.45,5.1083]
[1734034094744,2.1882,228.46,228.44,142.9305134]
[1734034094945,10.1024934,228.56,228.44,135.01642]
[1734034095240,2.188,228.48,228.44,132.82802]
[1734034095545,2.744,228.55,228.45,5.31464378]
[1734034095844,2.744,228.55,228.44,132.82802]
[1734034099546,5.3694052,228.54,228.44,132.82802]
[1734034100242,2.1879,228.5,228.44,135.01632]
[1734034100745,2.1879,228.49,228.44,135.01632]
[1734034102548,2.1879,228.5,228.45,2.1883]
[1734034103951,2.1879,228.5,228.46,2.1882]
[1734034104452,2.1879,228.5,228.44,142.9305134]
[1734034104652,2.1879,228.5,228.45,2.1883]
[1734034105148,2.1879,228.49,228.45,2.1883]
[1734034105346,5.3694052,228.54,228.44,132.82802]
[1734034106343,2.1882,228.46,228.44,132.82802]
[1734034107849,2.1883,228.45,228.44,132.82802]
[1734034109553,2.1883,228.45,228.44,103.33592]
[1734034109748,2.1883,228.45,228.44,102.96892]
[1734034110254,2.1883,228.45,228.44,88.79442]
[1734034110657,5.1083,228.45,228.44,88.79442]
[1734034111153,2.1883,228.45,228.44,88.79442]
[1734034112454,13.0224934,228.53,228.44,88.79442]
[1734034112653,10.1024934,228.53,228.44,88.79442]
[1734034112856,0.67296601,228.52,228.44,88.79442]
[1734034113058,1.34593382,228.52,228.44,88.79442]
[1734034113561,0.67296601,228.52,228.44,88.79442]
[1734034113754,2.1882,228.46,228.44,88.79442]
[1734034114255,2.1883,228.45,228.44,88.79442]
[1734034117353,2.1893,228.35,228.31,2.92]
[1734034117556,10.1024934,228.42,228.31,2.92]
[1734034117862,13.0224934,228.42,228.3,8.1284]
[1734034118452,2.1896,228.31,228.3,8.1284]
[1734034118658,2.1896,228.31,228.3,5.336]
[1734034118853,10.1024934,228.36,228.22,10.1024934]
[1734034119063,10.1024934,228.36,228.23,5.5087]
[1734034119064,2.1901,228.27,228.23,5.5087]
[1734034119364,10.1024934,228.33,228.23,2.7587]
[1734034119571,13.0224934,228.36,228.21,2.92]
[1734034119572,10.1024934,228.3,228.21,2.92]
[1734034119759,10.1024934,228.3,228.17,5.5087]
[1734034119961,10.1024934,228.27,228.17,5.5087]
[1734034120766,10.1024934,228.27,228.15,2.92]
[1734034120965,10.1024934,228.27,228.12,8.4794]
[1734034121167,10.1024934,228.31,228.17,10.1024934]
[1734034121364,2.1901,228.26,228.17,10.1024934]
[1734034121563,10.1024934,228.31,228.18,5.1108]
[1734034122168,5.33828514,228.28,228.18,5.1108]
[1734034122664,5.33828514,228.28,228.18,2.92]
[1734034122868,10.1024934,228.27,228.18,2.92]
[1734034123164,5.33828514,228.28,228.18,2.92]
[1734034123767,2.92,228.36,228.18,2.92]
[1734034124069,10.1024934,228.33,228.18,2.92]
[1734034124462,10.1024934,228.3,228.18,2.92]
[1734034124663,13.0224934,228.3,228.18,2.92]
[1734034125265,2.1906,228.22,228.15,2.1911]
[1734034125969,2.1906,228.22,228.16,2.1911]
[1734034126463,2.1906,228.22,228.14,13.0224934]
[1734034126666,13.0224934,228.3,228.14,13.0224934]
[1734034126970,13.0224934,228.3,228.15,2.1911]
[1734034127864,13.0224934,228.3,228.14,13.0224934]
[1734034127865,13.0224934,228.3,228.16,2.191]
[1734034128768,2.1906,228.22,228.17,10.1024934]
[1734034129170,2.1906,228.22,228.17,12.2934934]
[1734034129567,5.24694478,228.32,228.19,2.1908]
[1734034129766,5.24694478,228.32,228.2,10.1024934]
[1734034130170,5.24694478,228.32,228.21,2.7847]
[1734034130375,5.24694478,228.32,228.22,2.1905]
[1734034130675,2.19,228.27,228.22,5.0269]
[1734034130873,1.0,228.35,228.23,10.1024934]
[1734034131075,2.92,228.34,228.23,12.7390934]
[1734034131678,8.23344827,228.34,228.23,2.6366]
[1734034131978,10.1024934,228.33,228.23,2.6366]
[1734034132172,2.1903,228.25,228.23,2.6366]
[1734034132372,10.1024934,228.33,228.23,2.6366]
[1734034132779,2.1903,228.25,228.23,2.6366]
[1734034133078,10.1024934,228.33,228.23,2.6366]
[1734034133971,2.1897,228.3,228.23,2.6366]
[1734034134176,10.1024934,228.33,228.23,2.6366]
[1734034134373,8.23344827,228.34,228.23,2.6366]
[1734034134576,8.23344827,228.34,228.23,4.827]
[1734034134973,2.1899,228.28,228.23,2.6366]
[1734034135181,5.31344827,228.34,228.23,2.6366]
[1734034135677,2.1898,228.3,228.23,4.8269]
[1734034136076,5.31344827,228.34,228.23,4.8269]
[1734034136678,2.1899,228.29,228.23,4.8269]
[1734034136875,10.1024934,228.33,228.23,2.6366]
[1734034137272,2.1901,228.26,228.23,2.6366]
[1734034138380,2.19,228.27,228.23,2.6366]
[1734034138578,5.31344827,228.34,228.22,2.8364]
[1734034138780,10.1024934,228.24,228.12,8.04557984]
[1734034138976,10.1024934,228.24,228.13,5.195]
[1734034139478,2.1906,228.21,228.13,5.195]
[1734034139676,10.1024934,228.27,228.14,2.1912]
[1734034139872,10.1024934,228.27,228.14,2.9]
[1734034140072,2.9,228.28,228.15,10.1024934]
[1734034140273,2.9,228.28,228.16,2.191]
[1734034140578,2.1906,228.22,228.15,10.1024934]
[1734034141378,2.1907,228.2,228.15,12.2935934]
[1734034141582,2.9,228.28,228.15,10.1024934]
[1734034142188,10.1024934,228.27,228.14,2.9]
[1734034142786,10.1024934,228.24,228.14,2.9]
[1734034143490,10.1024934,228.27,228.14,2.9]
[1734034143684,2.1907,228.2,228.14,5.0912]
[1734034144088,10.1024934,228.27,228.14,2.9]
[1734034144591,10.1024934,228.24,228.14,2.9]
[1734034145583,2.1911,228.16,228.14,2.9]
[1734034145988,10.1024934,228.24,228.14,2.9]
[1734034146188,2.1906,228.21,228.14,2.9]
[1734034146393,10.1024934,228.27,228.14,2.9]
[1734034146988,10.1024934,228.27,228.15,10.1024934]
[1734034147694,10.1024934,228.27,228.15,12.2935934]
[1734034148099,10.1024934,228.27,228.14,2.9]
[1734034148390,10.1024934,228.24,228.14,2.9]
[1734034149900,2.1909,228.18,228.14,2.9]
[1734034150695,10.1024934,228.24,228.14,2.9]
[1734034150895,2.191,228.17,228.14,2.9]
[1734034151194,2.191,228.17,228.13,5.195]
[1734034152192,10.1024934,228.24,228.13,5.195]
[1734034153192,2.1906,228.21,228.13,5.195]
[1734034153493,10.1024934,228.24,228.13,5.195]
[1734034153695,2.191,228.18,228.13,7.3864]
[1734034153895,10.1024934,228.24,228.13,7.3864]
[1734034154294,2.1909,228.18,228.13,7.3864]
[1734034155200,10.1024934,228.24,228.13,5.195]
[1734034156103,10.1024934,228.27,228.13,5.195]
[1734034156293,13.0024934,228.31,228.15,10.1024934]
[1734034156493,1.0,228.33,228.14,5.29663469]
[1734034156792,10.1024934,228.31,228.15,5.29636785]
[1734034157099,10.1024934,228.28,228.16,8.19636785]
[1734034157295,10.1024934,228.28,228.16,2.9]
[1734034157897,2.9,228.31,228.16,13.0024934]
[1734034157898,10.1024934,228.31,228.16,13.0024934]
[1734034158295,3.9,228.33,228.19,10.1024934]
[1734034158711,2.1901,228.27,228.22,2.1905]
[1734034158905,3.9,228.33,228.19,10.1024934]
[1734034159306,3.9,228.33,228.23,2.1904]
[1734034159503,3.9,228.33,228.22,2.9]
[1734034159699,2.1901,228.26,228.22,2.9]
[1734034161108,2.1902,228.25,228.22,2.9]
[1734034162906,2.1901,228.27,228.22,2.9]
[1734034163102,2.1901,228.27,228.23,5.3927]
[1734034163303,2.1901,228.27,228.23,7.583]
[1734034163506,2.1901,228.26,228.23,7.583]
[1734034163907,2.1901,228.26,228.23,5.3927]
[1734034166603,55.85659748,228.34,228.23,5.3927]
[1734034166808,55.85659748,228.34,228.24,2.7864]
[1734034167808,55.85659748,228.34,228.26,2.1901]
[1734034168208,2.1898,228.3,228.26,2.1901]
[1734034168909,55.85659748,228.34,228.26,2.1901]
[1734034168910,2.1899,228.29,228.26,2.1901]
[1734034169104,10.1024934,228.31,228.21,2.1906]
[1734034169309,6.48988466,228.28,228.2,6.48988466]
[1734034169510,2.1904,228.24,228.2,6.48988466]
[1734034169707,2.1904,228.24,228.2,9.38988466]
[1734034170312,2.1902,228.26,228.22,6.48988466]
[1734034170613,58.75659748,228.34,228.24,6.48988466]
[1734034170614,6.48988466,228.32,228.24,6.48988466]
[1734034170811,6.48988466,228.32,228.25,2.1902]
[1734034171008,2.1899,228.28,228.25,2.1902]
[1734034171212,2.1899,228.28,228.24,6.48988466]
[1734034171513,2.1899,228.28,228.24,8.68018466]
[1734034172509,2.1899,228.28,228.25,2.1902]
[1734034172718,2.1896,228.31,228.26,6.48988466]
[1734034172915,6.48988466,228.35,228.28,6.48988466]
[1734034173220,6.48988466,228.39,228.3,6.48988466]
[1734034173513,2.1894,228.34,228.32,6.48988466]
[1734034174114,2.1894,228.33,228.3,6.48988466]
[1734034174317,6.48988466,228.35,228.28,2.6241]
[1734034174615,6.48988466,228.35,228.28,9.11398466]
[1734034175418,2.1897,228.31,228.28,9.11398466]
[1734034176316,2.1896,228.32,228.28,11.30388466]
[1734034177715,2.1896,228.32,228.3,6.48988466]
[1734034180620,2.1896,228.31,228.3,6.48988466]
[1734034180818,6.48988466,228.37,228.28,9.11398466]
[1734034181117,5.15174356,228.4,228.36,6.48988466]
[1734034181322,6.48988466,228.46,228.38,6.48988466]
[1734034181518,6.48988466,228.42,228.36,6.48988466]
[1734034181717,2.1889,228.39,228.34,2.9]
[1734034181912,6.48988466,228.42,228.34,9.38988466]
[1734034182312,2.189,228.39,228.34,9.38988466]
[1734034182618,5.32327797,228.45,228.36,6.48988466]
[1734034182619,6.48988466,228.44,228.36,6.48988466]
[1734034182819,2.1887,228.41,228.36,6.48988466]
[1734034183017,55.81673549,228.51,228.4,6.48988466]
[1734034183219,7.16159711,228.5,228.42,6.48988466]
[1734034183516,5.24388883,228.5,228.44,6.48988466]
[1734034183912,2.188,228.48,228.41,2.9]
[1734034184117,6.48988466,228.49,228.41,9.38988466]
[1734034184525,2.1879,228.49,228.43,6.48988466]
[1734034185021,2.1878,228.5,228.45,6.48988466]
[1734034185227,6.48988466,228.53,228.45,6.48988466]
[1734034185719,45.56,228.65,228.47,6.48988466]
[1734034185920,6.48988466,228.54,228.47,6.48988466]
[1734034186224,2.188,228.48,228.42,10.6662]
[1734034186415,6.48988466,228.5,228.43,6.48988466]
[1734034186821,5.15240115,228.54,228.43,6.48988466]
[1734034187016,6.48988466,228.53,228.45,6.48988466]
[1734034187232,10.11811616,228.57,228.42,18.59581616]
[1734034187429,2.1879,228.5,228.43,2.1884]
[1734034187619,2.1879,228.5,228.42,18.59581616]
[1734034188224,2.1877,228.52,228.42,18.59581616]
[1734034188423,10.11811616,228.57,228.42,18.59581616]
[1734034188930,2.1879,228.5,228.44,2.1884]
[1734034189130,10.11811616,228.54,228.42,18.59581616]
[1734034189621,2.188,228.49,228.43,2.1884]
[1734034189823,10.11811616,228.54,228.42,8.4777]
[1734034190330,10.11811616,228.51,228.42,5.6411]
[1734034190830,2.1883,228.46,228.42,5.6411]
[1734034193831,2.1883,228.46,228.3,2.8073]
[1734034193832,10.11811616,228.51,228.37,5.069]
[1734034194231,2.1885,228.43,228.38,2.1889]
[1734034194430,10.11811616,228.51,228.37,2.88]
[1734034194729,0.67132788,228.5,228.37,2.88]
[1734034195730,0.67132788,228.5,228.38,10.11811616]
[1734034195925,8.19695689,228.55,228.44,10.11811616]
[1734034195926,5.29695689,228.55,228.44,10.11811616]
[1734034196126,5.29695689,228.55,228.45,2.88]
[1734034196323,10.11811616,228.58,228.45,2.88]
[1734034196324,0.67140943,228.54,228.45,2.88]
[1734034196534,0.67140943,228.54,228.47,10.11811616]
[1734034196830,0.67140943,228.54,228.5,12.30581616]
[1734034197031,2.1873,228.55,228.5,12.30581616]
[1734034197231,0.67147876,228.57,228.5,10.11811616]
[1734034197430,2.1873,228.56,228.51,2.88]
[1734034197635,5.28159493,228.6,228.51,2.88]
[1734034199237,10.11811616,228.64,228.51,2.88]
[1734034199634,2.1876,228.53,228.51,2.88]
[1734034200332,2.1876,228.52,228.51,2.88]
[1734034200533,10.11811616,228.61,228.47,12.99811616]
[1734034200534,15.44805633,228.61,228.47,12.99811616]
[1734034200841,2.1878,228.51,228.47,10.11811616]
[1734034201135,2.1878,228.51,228.47,12.99811616]
[1734034201533,10.11811616,228.58,228.47,2.88]
[1734034202032,2.1874,228.55,228.47,2.88]
[1734034202232,10.11811616,228.58,228.47,2.88]
[1734034203332,2.1874,228.55,228.47,2.88]
[1734034203543,10.11811616,228.58,228.47,2.88]
[1734034204941,10.11811616,228.55,228.45,5.4786]
[1734034205140,10.11811616,228.55,228.43,2.88]
[1734034205540,10.11811616,228.55,228.41,2.88]
[1734034205733,2.1884,228.45,228.41,2.88]
[1734034205936,10.11811616,228.52,228.41,2.88]
[1734034206544,2.1884,228.44,228.41,2.88]
[1734034207040,2.1884,228.44,228.39,5.3426]
[1734034207041,10.11811616,228.52,228.39,8.2226]
[1734034208443,10.11811616,228.52,228.39,5.3426]
[1734034208644,10.11811616,228.49,228.39,5.3426]
[1734034208844,10.11811616,228.49,228.32,10.11811616]
[1734034209147,10.11811616,228.46,228.32,10.11811616]
[1734034209444,10.11811616,228.46,228.33,2.88]
[1734034209845,2.1892,228.36,228.33,2.88]
[1734034211144,10.11811616,228.43,228.29,10.11811616]
[1734034211447,10.11811616,228.43,228.29,12.99811616]
[1734034212747,2.1894,228.34,228.29,12.99811616]
[1734034213347,2.1896,228.32,228.28,2.88]
[1734034213849,10.11811616,228.37,228.26,5.1831]
[1734034214045,4.3766,228.46,228.26,5.1831]
[1734034214046,10.11811616,228.34,228.26,5.1831]
[1734034214245,2.88,228.35,228.26,5.1831]
[1734034214447,2.88,228.36,228.26,5.1831]
[1734034214743,2.1899,228.29,228.26,5.1831]
[1734034216748,2.19,228.27,228.21,8.16155453]
[1734034216940,2.19,228.27,228.22,5.29624099]
[1734034217140,2.19,228.27,228.21,8.16155453]
[1734034217345,2.19,228.27,228.23,5.2962392]
[1734034217545,2.88,228.36,228.21,2.88]
[1734034217748,10.11811616,228.34,228.2,17.73451616]
[1734034217948,10.11811616,228.34,228.21,5.2975347]
[1734034218146,10.11811616,228.34,228.2,17.73451616]
[1734034218350,10.11811616,228.34,228.21,5.29705146]
[1734034218645,10.11811616,228.34,228.21,2.88]
[1734034218951,2.19,228.28,228.22,2.1905]
[1734034219447,10.11811616,228.34,228.22,2.1905]
[1734034219448,2.19,228.27,228.22,2.1905]
[1734034219756,2.88,228.39,228.26,10.11811616]
[1734034220055,2.88,228.4,228.27,2.88]
[1734034220346,2.88,228.42,228.29,10.11811616]
[1734034220547,2.88,228.44,228.32,10.11811616]
[1734034221049,10.11811616,228.49,228.35,10.11811616]
[1734034221244,2.88,228.45,228.35,10.11811616]
[1734034221941,2.189,228.39,228.35,10.11811616]
[1734034222142,2.88,228.45,228.33,5.0694]
[1734034222553,2.1889,228.39,228.33,5.0694]
[1734034222748,2.1889,228.39,228.33,10.0806]
[1734034224348,2.1887,228.41,228.35,12.30731616]
[1734034224647,5.29173262,228.48,228.35,10.11811616]
[1734034224843,2.1886,228.42,228.37,2.189]
[1734034225152,2.1886,228.42,228.35,10.11811616]
[1734034225351,2.1886,228.42,228.36,2.1891]
[1734034226342,2.1887,228.41,228.36,2.1891]
[1734034226550,5.29173262,228.48,228.35,12.30731616]
[1734034226753,15.40984878,228.48,228.34,2.3844]
[1734034226950,2.1884,228.44,228.34,2.3844]
[1734034227156,15.40984878,228.48,228.36,2.1891]
[1734034227653,2.1887,228.41,228.36,2.1891]
[1734034228153,2.1888,228.4,228.35,12.30731616]
[1734034228550,10.11811616,228.45,228.34,2.3844]
[1734034229057,15.40984878,228.48,228.34,2.3844]
[1734034229250,15.40984878,228.48,228.35,2.1892]
[1734034229560,15.40984878,228.48,228.34,2.3844]
[1734034230458,0.67140997,228.47,228.34,2.3844]
[1734034230656,2.1889,228.39,228.34,2.3844]
[1734034230857,15.40984878,228.48,228.34,2.3844]
[1734034231255,2.1889,228.39,228.34,2.3844]
[1734034231761,15.40984878,228.48,228.34,2.3844]
[1734034232061,15.40984878,228.48,228.33,7.2006]
[1734034232062,10.11811616,228.45,228.33,5.0112]
[1734034233457,2.1892,228.36,228.33,5.0112]
[1734034234862,10.11811616,228.42,228.33,5.0112]
[1734034235064,10.11811616,228.39,228.24,2.86]
[1734034235267,2.1893,228.35,228.27,2.19]
[1734034235468,10.11811616,228.39,228.27,2.19]
[1734034236561,2.1895,228.33,228.28,2.1899]
[1734034237466,2.86,228.43,228.32,2.1895]
[1734034237467,2.1892,228.36,228.32,2.1895]
[1734034237661,10.11811616,228.42,228.31,5.0249]
[1734034239360,2.1893,228.35,228.31,5.0249]
[1734034240068,2.1894,228.34,228.31,5.0249]
[1734034240564,2.1895,228.32,228.31,5.0249]
[1734034240973,10.11811616,228.42,228.31,5.0249]
[1734034242264,2.86,228.43,228.31,5.0249]
[1734034242471,2.86,228.43,228.31,7.6456]
[1734034243773,2.1891,228.37,228.32,2.1895]
[1734034244273,2.86,228.46,228.33,10.11811616]
[1734034244777,12.97811616,228.46,228.33,10.11811616]
[1734034244977,2.1889,228.39,228.34,2.1893]
[1734034245174,2.1889,228.39,228.36,6.48123975]
[1734034246072,2.86,228.46,228.36,6.48123975]
[1734034246073,5.29173262,228.48,228.38,6.48123975]
[1734034246275,5.29173262,228.48,228.41,6.48123975]
[1734034246869,2.1885,228.44,228.41,6.48123975]
[1734034247176,2.1885,228.44,228.39,2.1888]
[1734034247677,2.1885,228.43,228.39,2.1888]
[1734034248482,2.1886,228.42,228.39,2.1888]
[1734034249578,10.12310426,228.51,228.37,10.12310426]
[1734034249776,10.12310426,228.51,228.38,5.3173188]
[1734034249975,10.12310426,228.51,228.39,5.3173188]
[1734034250177,10.12310426,228.51,228.37,10.12310426]
[1734034250384,10.12310426,228.51,228.38,5.31799738]
[1734034250584,10.12310426,228.51,228.39,5.31799738]
[1734034250782,10.12310426,228.54,228.37,10.12310426]
[1734034250986,3.53196672,228.53,228.4,10.12310426]
[1734034251189,7.44607821,228.5,228.41,4.6669]
[1734034251490,5.25817821,228.5,228.41,7.2947]
[1734034251994,2.1883,228.45,228.41,7.2947]
[1734034253790,5.25817821,228.5,228.41,5.1061]
[1734034254287,10.12310426,228.48,228.37,2.189]
[1734034255185,10.12310426,228.48,228.36,5.0491]
[1734034255387,10.12310426,228.45,228.36,2.86]
[1734034256586,2.1889,228.39,228.36,2.86]
[1734034257399,2.189,228.38,228.36,2.86]
[1734034257600,10.12310426,228.45,228.33,10.12310426]
[1734034257794,10.12310426,228.45,228.33,12.98310426]
[1734034258496,2.1891,228.37,228.33,12.98310426]
[1734034258694,10.12310426,228.45,228.32,5.24]
[1734034259002,2.1893,228.34,228.32,5.24]
[1734034259202,10.12310426,228.42,228.32,5.24]
[1734034260301,10.12310426,228.42,228.27,10.12310426]
[1734034260691,10.12310426,228.39,228.27,10.12310426]
[1734034260890,10.12310426,228.39,228.26,10.1977]
[1734034260891,2.1896,228.31,228.26,10.1977]
[1734034261092,10.12310426,228.36,228.26,5.1476]
[1734034261296,10.12310426,228.39,228.26,5.1476]
[1734034262600,10.12310426,228.39,228.27,2.19]
[1734034262601,2.1895,228.33,228.27,2.19]
[1734034263195,2.1896,228.32,228.26,7.3377]
[1734034264597,10.12310426,228.39,228.26,7.3377]
[1734034264994,5.14550881,228.36,228.26,7.3377]
[1734034265399,2.1896,228.31,228.26,7.3377]
[1734034266001,2.1899,228.29,228.26,5.1476]
[1734034266306,15.26861307,228.36,228.26,5.1476]
[1734034266700,10.12310426,228.33,228.22,2.86]
[1734034267100,12.98310426,228.33,228.22,2.86]
[1734034267400,12.98310426,228.33,228.18,10.12310426]
[1734034267600,12.98310426,228.33,228.2,5.30444461]
[1734034267800,2.1898,228.3,228.21,7.49504461]
[1734034267995,12.98310426,228.33,228.22,5.30444461]
[1734034268197,12.98310426,228.33,228.21,2.1906]
[1734034268395,2.1901,228.26,228.22,5.3029064]
[1734034268596,2.1901,228.26,228.21,2.1906]
[1734034268811,2.1901,228.26,228.22,5.30295369]
[1734034269007,2.1901,228.26,228.21,2.1906]
[1734034269198,2.1902,228.25,228.23,6.48887858]
[1734034269900,6.48887858,228.28,228.16,2.6308]
[1734034270202,6.48887858,228.26,228.19,6.48887858]
[1734034270502,2.86,228.33,228.19,6.48887858]
[1734034270503,2.1906,228.22,228.19,6.48887858]
[1734034270801,2.86,228.33,228.16,5.4908]
[1734034270802,6.48887858,228.29,228.21,6.48887858]
[1734034271808,6.48887858,228.29,228.21,8.67947858]
[1734034271998,6.48887858,228.29,228.21,6.48887858]
[1734034273499,2.86,228.33,228.19,2.86]
[1734034273703,5.14550881,228.36,228.27,6.48887858]
[1734034274003,2.1896,228.32,228.27,8.67887858]
[1734034274208,6.48887858,228.35,228.27,8.67887858]
[1734034274504,6.48887858,228.35,228.27,6.48887858]
[1734034274809,2.1897,228.31,228.27,6.48887858]
[1734034275103,6.48887858,228.33,228.27,6.48887858]
[1734034275303,6.48887858,228.31,228.19,2.86]
[1734034275498,2.1901,228.26,228.23,6.48887858]
[1734034275903,6.48887858,228.31,228.23,6.48887858]
[1734034275904,2.19,228.28,228.23,6.48887858]
[1734034276300,6.48887858,228.33,228.25,6.48887858]
[1734034276708,2.1897,228.31,228.26,2.1901]
[1734034277010,6.48887858,228.33,228.25,6.48887858]
[1734034277406,2.1898,228.3,228.25,6.48887858]
[1734034277710,6.48887858,228.33,228.25,6.48887858]
[1734034277906,2.19,228.28,228.25,6.48887858]
[1734034278110,6.48887858,228.31,228.23,8.67917858]
[1734034278409,6.48887858,228.28,228.21,9.34887858]
[1734034278608,6.48887858,228.3,228.21,9.34887858]
[1734034279309,6.48887858,228.3,228.23,6.48887858]
[1734034279512,6.48887858,228.32,228.25,6.48887858]
[1734034280011,2.1899,228.29,228.25,6.48887858]
[1734034280413,6.48887858,228.32,228.25,6.48887858]
[1734034280911,2.19,228.28,228.25,6.48887858]
[1734034283515,6.48887858,228.34,228.27,6.48887858]
[1734034284507,2.1898,228.3,228.27,6.48887858]
[1734034284708,6.48887858,228.34,228.27,6.48887858]
[1734034284913,6.48887858,228.34,228.25,8.67907858]
[1734034285614,2.1899,228.29,228.25,8.67907858]
[1734034286008,2.84,228.39,228.28,2.1899]
[1734034286208,2.1894,228.34,228.29,6.48887858]
[1734034286715,2.1891,228.37,228.31,6.48887858]
[1734034286911,6.48887858,228.4,228.31,6.48887858]
[1734034287318,6.48887858,228.4,228.31,8.67847858]
[1734034287319,2.1892,228.36,228.31,8.67847858]
[1734034287716,6.48887858,228.38,228.31,6.48887858]
[1734034288218,2.1893,228.35,228.31,6.48887858]
[1734034288413,6.48887858,228.36,228.27,2.84]
[1734034288615,6.48887858,228.36,228.28,6.48887858]
[1734034288816,2.1894,228.33,228.29,2.1898]
[1734034289018,2.1894,228.33,228.3,6.48887858]
[1734034289413,2.1893,228.35,228.32,6.48887858]
[1734034289610,2.1893,228.35,228.3,2.1896]
[1734034289611,2.1893,228.35,228.3,8.67847858]
[1734034290621,6.48887858,228.38,228.3,8.67847858]